bitfinex/quotes_SOLUSD_20241213
["timestamp","ask_amount","ask_price","bid_price","bid_amount"]
[1734108927649,28.87271791,221.6,221.52,2.70603632]
[1734108927850,28.87271791,221.6,221.56,21.48266349]
[1734108928023,28.87271791,221.6,221.52,2.70603632]
[1734108928024,28.87271791,221.6,221.57,21.48266349]
[1734108928225,28.87271791,221.6,221.58,21.48266349]
[1734108928435,28.87271791,221.6,221.59,21.48266349]
[1734108928642,0.0995938,221.63,221.59,21.48266349]
[1734108928853,0.0995938,221.63,221.62,21.48266349]
[1734108931432,28.8764778,221.63,221.62,21.48266349]
[1734108931756,23.776884,221.62,221.6,21.48266349]
[1734108931939,0.12549,221.61,221.6,21.48266349]
[1734108933257,0.12549,221.61,221.52,2.66615543]
[1734108933258,0.12549,221.59,221.58,21.48266349]
[1734108933562,0.12549,221.54,221.51,21.48266349]
[1734108933737,0.12549,221.54,221.5,21.48266349]
[1734108933738,28.87271791,221.54,221.5,21.48266349]
[1734108933938,4.97034391,221.56,221.53,21.48266349]
[1734108934149,5.0,221.57,221.55,21.48266349]
[1734108934532,11.3795938,221.63,221.48,8.6555]
[1734108934533,5.0,221.61,221.56,21.48266349]
[1734108934742,0.0995938,221.63,221.54,21.48266349]
[1734108934743,0.0995938,221.63,221.6,21.48266349]
[1734108935036,0.0995938,221.63,221.62,21.48266349]
[1734108935235,0.84577872,221.76,221.62,51.66682698]
[1734108935236,5.0,221.74,221.62,51.66682698]
[1734108935456,5.0,221.74,221.73,21.48266349]
[1734108935964,0.12549,221.73,221.68,20.0]
[1734108936155,5.0,221.74,221.72,21.48266349]
[1734108936337,5.0,221.74,221.73,21.48266349]
[1734108936536,5.0,221.74,221.72,21.48266349]
[1734108937058,0.12549,221.69,221.68,21.48266349]
[1734108937634,23.902374,221.69,221.67,21.48266349]
[1734108937955,5.0,221.64,221.63,21.48266349]
[1734108938176,5.0,221.64,221.61,21.48266349]
[1734108938177,23.776884,221.63,221.61,21.48266349]
[1734108938461,23.776884,221.6,221.59,21.48266349]
[1734108938838,3.901094,221.63,221.59,21.48266349]
[1734108939162,23.776884,221.62,221.61,21.48266349]
[1734108939340,3.901094,221.63,221.61,21.48266349]
[1734108939542,3.901094,221.63,221.62,21.48266349]
[1734108939543,27.677978,221.63,221.62,21.48266349]
[1734108939751,3.901094,221.6,221.52,2.7032194]
[1734108939946,3.901094,221.56,221.54,21.48266349]
[1734108940154,23.776884,221.55,221.53,21.48266349]
[1734108940360,3.901094,221.58,221.54,21.48266349]
[1734108940563,27.677978,221.58,221.55,21.48266349]
[1734108942168,27.677978,221.58,221.54,21.48266349]
[1734108943354,23.776884,221.58,221.55,21.48266349]
[1734108943558,3.901094,221.57,221.55,21.48266349]
[1734108944469,8.87143791,221.57,221.54,21.48266349]
[1734108945555,28.74722791,221.53,221.51,21.48266349]
[1734108945868,27.677978,221.52,221.51,21.48266349]
[1734108946444,27.677978,221.52,221.5,21.48266349]
[1734108947478,3.901094,221.5,221.49,21.48266349]
[1734108947768,27.677978,221.48,221.47,21.48266349]
[1734108947973,3.901094,221.46,221.45,21.48266349]
[1734108948166,27.677978,221.46,221.45,21.48266349]
[1734108948553,4.97034391,221.47,221.45,21.48266349]
[1734108948755,4.97034391,221.47,221.39,30.0]
[1734108948756,23.776884,221.47,221.46,21.48266349]
[1734108948960,3.901094,221.48,221.46,21.48266349]
[1734108949248,4.97034391,221.47,221.4,20.0]
[1734108949478,3.901094,221.48,221.4,20.0]
[1734108949649,4.97034391,221.49,221.47,21.48266349]
[1734108949845,3.901094,221.52,221.41,31.2912]
[1734108950168,8.87143791,221.52,221.42,0.12549]
[1734108950367,3.901094,221.52,221.51,21.48266349]
[1734108950553,8.87143791,221.52,221.51,21.48266349]
[1734108950874,3.901094,221.52,221.51,21.48266349]
[1734108951349,8.87143791,221.52,221.51,21.48266349]
[1734108951549,32.64832191,221.52,221.51,21.48266349]
[1734108952349,23.776884,221.48,221.47,21.48266349]
[1734108953804,23.776884,221.48,221.38,30.0]
[1734108953805,3.901094,221.47,221.46,21.48266349]
[1734108953973,3.901094,221.47,221.45,21.48266349]
[1734108954148,28.74722791,221.44,221.43,21.48266349]
[1734108954352,27.677978,221.43,221.42,21.48266349]
[1734108955367,32.64832191,221.41,221.4,21.48266349]
[1734108955580,23.776884,221.4,221.39,21.48266349]
[1734108955951,8.87143791,221.41,221.32,21.48266349]
[1734108955952,32.64832191,221.39,221.38,21.48266349]
[1734108956373,32.64832191,221.39,221.36,21.48266349]
[1734108956374,32.77381191,221.39,221.36,21.48266349]
[1734108956579,32.64832191,221.37,221.35,21.48266349]
[1734108956882,8.87143791,221.35,221.34,21.48266349]
[1734108957289,8.87143791,221.39,221.34,21.48266349]
[1734108957452,8.87143791,221.41,221.38,21.48266349]
[1734108957657,4.97034391,221.43,221.4,21.48266349]
[1734108957858,3.901094,221.44,221.42,21.48266349]
[1734108958053,4.97034391,221.43,221.42,21.48266349]
[1734108958484,3.901094,221.44,221.42,21.48266349]
[1734108958691,27.677978,221.44,221.43,21.48266349]
[1734108958877,8.87143791,221.43,221.42,21.48266349]
[1734108959082,4.97034391,221.47,221.42,21.48266349]
[1734108959259,3.901094,221.48,221.46,21.48266349]
[1734108959461,3.901094,221.48,221.47,21.48266349]
[1734108959967,3.901094,221.48,221.46,21.48266349]
[1734108960169,3.901094,221.48,221.47,21.48266349]
[1734108960679,3.901094,221.46,221.45,21.48266349]
[1734108960884,3.901094,221.46,221.39,2.6125]
[1734108960885,8.87143791,221.46,221.44,21.48266349]
[1734108961059,4.97034391,221.46,221.45,21.48266349]
[1734108961259,8.87143791,221.48,221.45,21.48266349]
[1734108961461,8.87143791,221.48,221.47,21.48266349]
[1734108962393,4.97034391,221.48,221.47,21.48266349]
[1734108962592,8.87143791,221.48,221.47,21.48266349]
[1734108963481,32.64832191,221.48,221.46,21.48266349]
[1734108963666,32.64832191,221.46,221.44,21.48266349]
[1734108963989,8.87143791,221.44,221.43,21.48266349]
[1734108964366,8.87143791,221.44,221.42,21.48266349]
[1734108964562,3.901094,221.39,221.37,21.48266349]
[1734108964767,4.97034391,221.38,221.37,21.48266349]
[1734108965492,4.97034391,221.42,221.37,21.48266349]
[1734108965685,4.97034391,221.42,221.41,21.48266349]
[1734108966083,3.901094,221.45,221.41,21.48266349]
[1734108966295,3.901094,221.47,221.44,21.48266349]
[1734108966491,3.901094,221.47,221.46,21.48266349]
[1734108966983,3.901094,221.47,221.45,21.48266349]
[1734108967301,4.97034391,221.46,221.45,21.48266349]
[1734108969091,3.901094,221.45,221.43,21.48266349]
[1734108969272,4.97034391,221.44,221.42,21.48266349]
[1734108969471,8.87143791,221.4,221.37,21.48266349]
[1734108969674,3.901094,221.42,221.39,21.48266349]
[1734108969875,8.87143791,221.46,221.41,21.48266349]
[1734108970092,8.87143791,221.46,221.45,21.48266349]
[1734108971591,8.87143791,221.46,221.44,21.48266349]
[1734108971975,8.87143791,221.46,221.45,21.48266349]
[1734108973004,8.87143791,221.46,221.43,21.48266349]
[1734108973005,3.901094,221.44,221.43,21.48266349]
[1734108973184,3.901094,221.42,221.4,21.48266349]
[1734108973502,3.901094,221.4,221.39,21.48266349]
[1734108973894,8.87143791,221.4,221.39,21.48266349]
[1734108974485,4.97034391,221.37,221.35,21.48266349]
[1734108974797,3.901094,221.36,221.35,21.48266349]
[1734108975507,3.901094,221.36,221.32,21.48266349]
[1734108975689,0.84677057,221.45,221.32,21.48266349]
[1734108975690,3.901094,221.33,221.32,21.48266349]
[1734108976183,8.87143791,221.33,221.32,21.48266349]
[1734108976387,3.901094,221.3,221.21,2.74148356]
[1734108976682,8.87143791,221.32,221.29,21.48266349]
[1734108977004,8.87143791,221.32,221.21,24.22414705]
[1734108977005,3.901094,221.32,221.31,21.48266349]
[1734108977177,8.87143791,221.32,221.31,21.48266349]
[1734108979001,3.901094,221.29,221.27,21.48266349]
[1734108979202,11.2942,221.36,221.17,9.1617]
[1734108979203,3.901094,221.26,221.24,21.48266349]
[1734108979413,3.901094,221.26,221.17,2.6027]
[1734108979878,4.97034391,221.22,221.17,2.6027]
[1734108980408,4.97034391,221.22,221.21,21.48266349]
[1734108980409,8.87143791,221.22,221.21,21.48266349]
[1734108981116,4.97034391,221.22,221.21,21.48266349]
[1734108981344,8.87143791,221.22,221.21,21.48266349]
[1734108982118,0.84742219,221.3,221.13,6.559]
[1734108982119,4.97034391,221.2,221.14,20.0]
[1734108982408,4.97034391,221.2,221.09,1.5303787]
[1734108982907,3.901094,221.19,221.12,2.76464207]
[1734108983109,11.2981,221.28,221.11,0.23937618]
[1734108983110,8.87143791,221.17,221.11,0.23937618]
[1734108983411,3.901094,221.14,221.11,0.23937618]
[1734108983811,4.97034391,221.13,221.11,0.23937618]
[1734108984187,3.901094,221.12,221.11,0.23937618]
[1734108984596,3.901094,221.12,221.11,21.72203967]
[1734108985027,4.97034391,221.13,221.11,21.72203967]
[1734108985211,4.97034391,221.15,221.12,21.48266349]
[1734108985393,4.97034391,221.15,221.14,21.48266349]
[1734108985710,8.87143791,221.17,221.14,21.48266349]
[1734108985909,4.97034391,221.17,221.16,21.48266349]
[1734108986214,3.901094,221.21,221.16,21.48266349]
[1734108986408,3.901094,221.21,221.2,21.48266349]
[1734108986612,4.97034391,221.17,221.11,0.23937618]
[1734108986797,4.97034391,221.17,221.16,21.48266349]
[1734108986991,8.87143791,221.21,221.16,21.48266349]
[1734108987195,3.901094,221.21,221.2,21.48266349]
[1734108987520,3.901094,221.21,221.11,11.54577618]
[1734108987521,4.97034391,221.2,221.11,0.23937618]
[1734108987738,4.97034391,221.19,221.11,0.23937618]
[1734108987917,4.97034391,221.15,221.11,0.23937618]
[1734108988426,8.87143791,221.14,221.11,0.23937618]
[1734108988732,4.97034391,221.14,221.11,0.23937618]
[1734108989115,4.97034391,221.14,221.13,21.48266349]
[1734108989931,4.97034391,221.14,221.11,0.23937618]
[1734108989932,3.901094,221.13,221.11,0.23937618]
[1734108990232,3.901094,221.15,221.12,21.48266349]
[1734108990532,4.97034391,221.17,221.14,21.48266349]
[1734108990713,3.901094,221.19,221.16,21.48266349]
[1734108990914,4.97034391,221.2,221.18,21.48266349]
[1734108991116,8.87143791,221.2,221.19,21.48266349]
[1734108992513,4.97034391,221.2,221.19,21.48266349]
[1734108992733,8.87143791,221.22,221.19,21.48266349]
[1734108993045,8.87143791,221.22,221.14,6.6325]
[1734108993246,4.97034391,221.26,221.21,21.48266349]
[1734108993412,4.97034391,221.28,221.25,21.48266349]
[1734108993613,4.97034391,221.28,221.27,21.48266349]
[1734108993837,3.901094,221.27,221.25,21.48266349]
[1734108994025,3.901094,221.25,221.23,21.48266349]
[1734108994219,4.97034391,221.27,221.15,41.3043]
[1734108994220,4.97034391,221.27,221.24,21.48266349]
[1734108994439,4.97034391,221.27,221.26,21.48266349]
[1734108994812,4.97034391,221.27,221.25,21.48266349]
[1734108995230,4.97034391,221.27,221.26,21.48266349]
[1734108995613,3.901094,221.32,221.26,21.48266349]
[1734108995932,3.901094,221.34,221.31,21.48266349]
[1734108996244,4.97034391,221.33,221.32,21.48266349]
[1734108996426,4.97034391,221.33,221.31,21.48266349]
[1734108996623,3.901094,221.34,221.3,21.48266349]
[1734108996624,4.97034391,221.31,221.3,21.48266349]
[1734108997339,8.87143791,221.31,221.29,21.48266349]
[1734108997530,4.97034391,221.27,221.25,21.48266349]
[1734108998918,3.901094,221.26,221.24,21.48266349]
[1734108999120,4.97034391,221.27,221.21,6.5286]
[1734108999121,4.97034391,221.22,221.21,21.48266349]
[1734108999315,8.87143791,221.22,221.21,21.48266349]
[1734108999652,8.87143791,221.22,221.2,21.48266349]
[1734109000435,8.87143791,221.22,221.21,21.48266349]
[1734109000641,4.97034391,221.22,221.21,21.48266349]
[1734109001511,8.87143791,221.22,221.21,21.48266349]
[1734109001713,4.97034391,221.19,221.18,21.48266349]
[1734109001934,4.97034391,221.19,221.17,21.48266349]
[1734109002124,3.901094,221.18,221.17,21.48266349]
[1734109003146,3.901094,221.18,221.11,0.23937618]
[1734109003329,8.87143791,221.16,221.15,21.48266349]
[1734109004347,8.87143791,221.14,221.13,21.48266349]
[1734109008132,3.901094,221.12,221.11,21.72203967]
[1734109008337,8.87143791,221.12,221.11,21.72203967]
[1734109009247,8.87143791,221.12,221.11,0.23937618]
[1734109010333,32.77381191,221.12,221.11,0.23937618]
[1734109010629,8.87143791,221.12,221.11,0.23937618]
[1734109011435,4.97034391,221.12,221.11,21.72203967]
[1734109011633,8.87143791,221.12,221.11,21.72203967]
[1734109011844,8.87143791,221.14,221.11,21.72203967]
[1734109012150,27.5987,221.26,221.11,21.72203967]
[1734109012151,4.97034391,221.16,221.13,21.48266349]
[1734109012445,3.901094,221.19,221.15,21.48266349]
[1734109012446,4.97034391,221.17,221.15,21.48266349]
[1734109012647,8.87143791,221.17,221.16,21.48266349]
[1734109012854,4.97034391,221.17,221.16,21.48266349]
[1734109013063,8.87143791,221.17,221.16,21.48266349]
[1734109013436,4.97034391,221.19,221.16,21.48266349]
[1734109013749,8.87143791,221.19,221.18,21.48266349]
[1734109013949,4.97034391,221.19,221.18,21.48266349]
[1734109014157,8.87143791,221.19,221.18,21.48266349]
[1734109014525,4.97034391,221.19,221.18,21.48266349]
[1734109014766,4.97034391,221.16,221.11,2.78917618]
[1734109014966,4.97034391,221.16,221.15,21.48266349]
[1734109015625,8.87143791,221.18,221.15,21.48266349]
[1734109015861,4.97034391,221.18,221.17,21.48266349]
[1734109016546,8.87143791,221.18,221.17,21.48266349]
[1734109017758,4.97034391,221.18,221.17,21.48266349]
[1734109018279,8.87143791,221.18,221.17,21.48266349]
[1734109019871,4.97034391,221.18,221.17,21.48266349]
[1734109020469,8.87143791,221.2,221.17,21.48266349]
[1734109020672,8.87143791,221.2,221.13,11.3054]
[1734109020673,3.901094,221.23,221.19,21.48266349]
[1734109020982,8.87143791,221.23,221.21,21.48266349]
[1734109021274,0.84733941,221.3,221.12,11.306]
[1734109021275,3.901094,221.19,221.12,11.306]
[1734109021435,3.901094,221.19,221.18,21.48266349]
[1734109021635,0.84733941,221.3,221.18,21.48266349]
[1734109021636,3.901094,221.21,221.18,21.48266349]
[1734109021867,4.97034391,221.22,221.2,21.48266349]
[1734109022164,4.97034391,221.22,221.21,21.48266349]
[1734109022339,17.297,221.31,221.21,21.48266349]
[1734109022340,3.901094,221.23,221.21,21.48266349]
[1734109022537,3.901094,221.23,221.22,21.48266349]
[1734109022935,3.901094,221.23,221.21,21.48266349]
[1734109023246,0.84734544,221.3,221.19,21.48266349]
[1734109023247,4.97034391,221.2,221.19,21.48266349]
[1734109023465,3.901094,221.19,221.18,21.48266349]
[1734109024145,4.97034391,221.2,221.18,21.48266349]
[1734109024450,4.97034391,221.2,221.19,21.48266349]
[1734109025669,4.97034391,221.22,221.19,21.48266349]
[1734109025967,4.97034391,221.22,221.21,21.48266349]
[1734109026143,4.97034391,221.24,221.21,21.48266349]
[1734109026341,4.97034391,221.26,221.23,21.48266349]
[1734109026568,4.97034391,221.26,221.25,21.48266349]
[1734109028135,4.97034391,221.28,221.25,21.48266349]
[1734109028338,4.97034391,221.28,221.27,21.48266349]
[1734109028637,4.97034391,221.26,221.25,21.48266349]
[1734109029277,8.87143791,221.26,221.25,13.47706574]
[1734109029457,8.87143791,221.24,221.23,13.47706574]
[1734109031040,4.97034391,221.26,221.23,13.47706574]
[1734109031238,8.87143791,221.29,221.25,13.47706574]
[1734109031439,8.87143791,221.29,221.28,13.47706574]
[1734109031679,8.87143791,221.27,221.25,13.47706574]
[1734109031884,4.97034391,221.25,221.24,13.47706574]
[1734109032239,8.87143791,221.25,221.24,13.47706574]
[1734109033772,3.901094,221.27,221.24,13.47706574]
[1734109033968,3.901094,221.29,221.26,13.47706574]
[1734109034272,8.87143791,221.28,221.23,2.5069]
[1734109034771,6.6352,221.37,221.27,13.47706574]
[1734109034772,8.87143791,221.3,221.27,13.47706574]
[1734109034968,4.97034391,221.3,221.29,13.47706574]
[1734109035176,8.87143791,221.3,221.29,13.47706574]
[1734109036485,4.97034391,221.3,221.29,13.47706574]
[1734109036686,8.87143791,221.3,221.29,13.47706574]
[1734109037994,8.87143791,221.32,221.29,13.47706574]
[1734109038322,8.87143791,221.34,221.31,13.47706574]
[1734109038486,8.87143791,221.34,221.33,13.47706574]
[1734109038695,3.901094,221.34,221.33,13.47706574]
[1734109039290,4.97034391,221.35,221.33,13.47706574]
[1734109039500,4.97034391,221.35,221.34,13.47706574]
[1734109040913,3.901094,221.3,221.26,30.0]
[1734109041118,4.97034391,221.29,221.26,30.0]
[1734109041319,4.97034391,221.29,221.23,13.8069]
[1734109041533,4.97034391,221.29,221.28,13.47706574]
[1734109045363,8.87143791,221.32,221.28,13.47706574]
[1734109045523,8.87143791,221.32,221.31,13.47706574]
[1734109046140,8.87143791,221.34,221.31,13.47706574]
[1734109046355,8.87143791,221.34,221.33,13.47706574]
[1734109047256,8.87143791,221.34,221.32,13.47706574]
[1734109047462,4.97034391,221.32,221.31,13.47706574]
[1734109047648,8.87143791,221.32,221.31,13.47706574]
[1734109048956,4.97034391,221.25,221.23,2.5069]
[1734109049159,4.97034391,221.25,221.24,13.47706574]
[1734109049160,8.87143791,221.25,221.24,13.47706574]
[1734109050473,8.87143791,221.31,221.24,13.47706574]
[1734109050752,3.901094,221.31,221.3,13.47706574]
[1734109050963,8.87143791,221.31,221.3,13.47706574]
[1734109053865,3.901094,221.29,221.28,13.47706574]
[1734109054048,11.2943,221.36,221.24,13.47706574]
[1734109054049,4.97034391,221.25,221.24,13.47706574]
[1734109054249,8.87143791,221.25,221.23,13.47706574]
[1734109054451,8.87143791,221.22,221.2,13.47706574]
[1734109054641,6.6292,221.3,221.19,13.47706574]
[1734109054642,8.87143791,221.2,221.19,13.47706574]
[1734109055136,8.87143791,221.2,221.19,21.575397]
[1734109058775,4.97034391,221.2,221.19,21.575397]
[1734109058946,8.87143791,221.2,221.19,21.575397]
[1734109059846,4.97034391,221.22,221.19,21.575397]
[1734109060044,3.901094,221.22,221.21,21.575397]
[1734109060338,8.87143791,221.22,221.21,21.575397]
[1734109060547,4.97034391,221.24,221.21,21.575397]
[1734109060772,4.97034391,221.24,221.23,21.575397]
[1734109062579,3.901094,221.23,221.22,21.575397]
[1734109063751,4.97034391,221.24,221.22,21.575397]
[1734109063994,8.87143791,221.24,221.23,21.575397]
[1734109065546,8.87143791,221.26,221.23,21.575397]
[1734109065757,4.97034391,221.25,221.21,21.575397]
[1734109065964,3.901094,221.26,221.21,21.575397]
[1734109066164,4.97034391,221.25,221.21,21.575397]
[1734109066755,4.97034391,221.25,221.24,21.575397]
[1734109067365,3.901094,221.26,221.24,21.575397]
[1734109067572,3.901094,221.26,221.25,21.575397]
[1734109069080,4.97034391,221.29,221.25,21.575397]
[1734109069285,4.97034391,221.29,221.28,21.575397]
[1734109073255,3.901094,221.3,221.28,21.575397]
[1734109073455,3.901094,221.3,221.29,21.575397]
[1734109073654,8.87143791,221.3,221.29,21.575397]
[1734109074679,3.901094,221.3,221.29,21.575397]
[1734109074856,8.87143791,221.3,221.29,21.575397]
[1734109075461,3.901094,221.3,221.29,21.575397]
[1734109077195,3.901094,221.3,221.29,13.46752966]
[1734109080987,8.87143791,221.3,221.29,13.46752966]
[1734109081695,3.901094,221.3,221.29,13.46752966]
[1734109082077,4.97034391,221.32,221.29,13.46752966]
[1734109082407,3.901094,221.32,221.31,13.46752966]
[1734109083391,4.97034391,221.33,221.31,13.46752966]
[1734109083582,4.97034391,221.33,221.32,13.46752966]
[1734109085682,3.901094,221.34,221.32,13.46752966]
[1734109085877,3.901094,221.34,221.33,13.46752966]
[1734109086791,4.97034391,221.35,221.33,13.46752966]
[1734109086990,4.97034391,221.35,221.34,13.46752966]
[1734109089213,0.84700686,221.42,221.24,11.2999]
[1734109089214,8.87143791,221.31,221.24,11.2999]
[1734109089394,3.901094,221.27,221.21,13.46752966]
[1734109090093,8.87143791,221.29,221.21,13.46752966]
[1734109090295,3.901094,221.28,221.22,11.3009]
[1734109090494,3.901094,221.28,221.27,13.46752966]
[1734109090690,4.97034391,221.29,221.27,13.46752966]
[1734109090889,4.97034391,221.29,221.28,13.46752966]
[1734109091391,3.901094,221.3,221.28,13.46752966]
[1734109091586,4.97034391,221.31,221.29,13.46752966]
[1734109092009,3.901094,221.32,221.3,13.46752966]
[1734109092212,3.901094,221.32,221.31,13.46752966]
[1734109092423,4.97034391,221.34,221.31,13.46752966]
[1734109092424,8.87143791,221.34,221.31,13.46752966]
[1734109092594,4.97034391,221.34,221.33,13.46752966]
[1734109093199,8.87143791,221.36,221.33,13.46752966]
[1734109093408,8.87143791,221.36,221.35,13.46752966]
[1734109093804,12.13654864,221.45,221.25,11.42489]
[1734109093805,3.901094,221.31,221.25,11.2994]
[1734109094008,4.97034391,221.3,221.24,20.0]
[1734109094207,3.901094,221.29,221.24,20.0]
[1734109095126,8.87143791,221.25,221.21,13.46752966]
[1734109095310,8.87143791,221.25,221.24,13.46752966]
[1734109096730,4.97034391,221.25,221.24,13.46752966]
[1734109097145,8.87143791,221.27,221.24,13.46752966]
[1734109097306,8.87143791,221.27,221.26,13.46752966]
[1734109097811,8.87143791,221.31,221.26,13.46752966]
[1734109098136,8.87143791,221.31,221.3,13.46752966]
[1734109099104,8.87143791,221.31,221.18,2.67281105]
[1734109099105,4.97034391,221.25,221.18,13.97551105]
[1734109099336,4.97034391,221.25,221.24,13.46752966]
[1734109099504,3.901094,221.26,221.24,13.46752966]
[1734109099706,3.901094,221.26,221.25,13.46752966]
[1734109101034,4.97034391,221.27,221.25,13.46752966]
[1734109101235,4.97034391,221.29,221.26,13.46752966]
[1734109101530,8.87143791,221.29,221.26,13.46752966]
[1734109101944,8.87143791,221.29,221.28,13.46752966]
[1734109102623,3.901094,221.22,221.15,13.993]
[1734109102810,3.901094,221.22,221.21,13.46752966]
[1734109104024,4.97034391,221.23,221.21,26.93505932]
[1734109104215,4.97034391,221.23,221.22,13.46752966]
[1734109104635,8.87143791,221.23,221.22,13.46752966]
[1734109105724,3.901094,221.23,221.22,13.46752966]
[1734109105925,8.87143791,221.23,221.22,13.46752966]
[1734109106234,8.87143791,221.23,221.16,14.03388669]
[1734109106235,8.87143791,221.21,221.13,11.3054]
[1734109106432,8.87143791,221.21,221.2,13.46752966]
[1734109108835,5.0,221.33,221.2,13.46752966]
[1734109108836,4.97034391,221.23,221.2,26.93505932]
[1734109109031,8.87143791,221.25,221.22,13.46752966]
[1734109109231,8.87143791,221.25,221.24,13.46752966]
[1734109109930,4.97034391,221.2,221.18,20.0]
[1734109110234,4.97034391,221.2,221.19,43.46752966]
[1734109111836,8.87143791,221.2,221.19,43.46752966]
[1734109112131,8.87143791,221.2,221.19,13.46752966]
[1734109113057,4.97034391,221.2,221.19,13.46752966]
[1734109113848,8.87143791,221.18,221.17,13.46752966]
[1734109114050,8.87143791,221.18,221.17,43.46752966]
[1734109114562,8.87143791,221.18,221.17,13.46752966]
[1734109114928,4.97034391,221.18,221.17,13.46752966]
[1734109115326,4.97034391,221.19,221.17,13.46752966]
[1734109115529,4.97034391,221.19,221.18,13.46752966]
[1734109117427,8.87143791,221.15,221.11,0.23937618]
[1734109117634,8.87143791,221.15,221.14,13.46752966]
[1734109118132,8.87143791,221.17,221.14,13.46752966]
[1734109118331,8.87143791,221.17,221.16,13.46752966]
[1734109118845,4.97034391,221.17,221.16,13.46752966]
[1734109119046,3.901094,221.2,221.16,13.46752966]
[1734109119263,4.97034391,221.21,221.19,13.46752966]
[1734109119452,4.97034391,221.21,221.2,13.46752966]
[1734109121867,4.97034391,221.23,221.2,13.46752966]
[1734109122044,4.97034391,221.23,221.22,13.46752966]
[1734109122244,11.2959,221.32,221.22,13.46752966]
[1734109122245,8.87143791,221.26,221.22,13.46752966]
[1734109122459,8.87143791,221.26,221.25,13.46752966]
[1734109124570,8.87143791,221.26,221.24,13.46752966]
[1734109124774,8.87143791,221.24,221.23,13.46752966]
[1734109125153,8.87143791,221.22,221.2,13.46752966]
[1734109125467,8.87143791,221.2,221.18,13.46752966]
[1734109126882,8.87143791,221.2,221.19,13.46752966]
[1734109127187,4.97034391,221.2,221.19,13.46752966]
[1734109127396,8.87143791,221.22,221.19,13.46752966]
[1734109127693,8.87143791,221.22,221.21,13.46752966]
[1734109127863,4.97034391,221.22,221.21,13.46752966]
[1734109128389,8.87143791,221.22,221.21,13.46752966]
[1734109129277,8.87143791,221.24,221.21,13.46752966]
[1734109129471,4.97034391,221.22,221.18,20.0]
[1734109129661,4.97034391,221.22,221.19,30.0]
[1734109129969,4.97034391,221.22,221.21,13.46752966]
[1734109130578,4.97034391,221.24,221.21,13.46752966]
[1734109130785,4.97034391,221.24,221.23,13.46752966]
[1734109134335,8.87143791,221.21,221.19,30.0]
[1734109134501,4.97034391,221.19,221.18,13.46752966]
[1734109134697,8.87143791,221.19,221.18,43.46752966]
[1734109135925,8.87143791,221.19,221.18,13.46752966]
[1734109138250,0.84755777,221.27,221.11,13.70690584]
[1734109138251,3.901094,221.12,221.11,13.70690584]
[1734109140853,4.97034391,221.13,221.11,13.70690584]
[1734109141150,4.97034391,221.13,221.12,13.46752966]
[1734109142051,4.97034391,221.15,221.12,13.46752966]
[1734109142351,4.97034391,221.15,221.14,13.46752966]
[1734109143238,3.901094,221.12,221.11,0.23937618]
[1734109143539,3.901094,221.12,221.11,13.70690584]
[1734109144547,4.97034391,221.13,221.11,13.70690584]
[1734109144752,3.901094,221.16,221.12,13.46752966]
[1734109145050,4.97034391,221.17,221.15,13.46752966]
[1734109145253,4.97034391,221.17,221.16,13.46752966]
[1734109145749,9.0495,221.23,221.11,0.23937618]
[1734109145750,4.97034391,221.13,221.11,0.23937618]
[1734109145926,4.97034391,221.13,221.12,13.46752966]
[1734109148264,3.901094,221.17,221.12,67.24441366]
[1734109148550,3.901094,221.17,221.16,13.46752966]
[1734109148750,3.901094,221.19,221.16,13.46752966]
[1734109148940,4.97034391,221.18,221.13,23.776884]
[1734109149147,4.97034391,221.2,221.17,13.46752966]
[1734109149339,3.901094,221.23,221.19,13.46752966]
[1734109149540,3.901094,221.22,221.18,20.0]
[1734109149838,8.87143791,221.23,221.18,20.0]
[1734109150047,8.87143791,221.23,221.22,13.46752966]
[1734109150463,3.901094,221.27,221.22,13.46752966]
[1734109150648,8.87143791,221.27,221.26,13.46752966]
[1734109153163,8.87143791,221.27,221.25,13.46752966]
[1734109153556,8.87143791,221.27,221.22,30.0]
[1734109153557,8.87143791,221.23,221.22,13.46752966]
[1734109153763,3.901094,221.21,221.15,11.3043]
[1734109153979,8.87143791,221.21,221.2,13.46752966]
[1734109154969,3.901094,221.21,221.2,13.46752966]
[1734109155164,8.87143791,221.21,221.2,13.46752966]
[1734109155770,3.901094,221.21,221.2,13.46752966]
[1734109155965,8.87143791,221.21,221.2,13.46752966]
[1734109156554,4.97034391,221.21,221.2,13.46752966]
[1734109156851,8.87143791,221.21,221.2,13.46752966]
[1734109158047,3.901094,221.21,221.2,13.46752966]
[1734109158252,8.87143791,221.21,221.2,13.46752966]
[1734109158455,4.97034391,221.21,221.2,13.46752966]
[1734109158664,8.87143791,221.21,221.2,13.46752966]
[1734109159546,3.901094,221.21,221.2,13.46752966]
[1734109159749,8.87143791,221.21,221.2,13.46752966]